Cogmind - Beta 16 @@@ ROGUE MODE // 2025.12.31 @ 17:58:28 Player: Centeno Result: Self-destructed Performance ------------- Evolutions (5) 2500 Regions Visited (10) 2000 Robots Destroyed (288) 1440 Value Destroyed (11531) 11531 Prototype IDs (11) 220 Alien Tech Used (0) 0 Bonus (3333) 3333 TOTAL SCORE: 21024 Bonus ------- High Alert Combat Kills 763 Follower Combat Kills 1506 Network Hubs Disabled 200 Built Enhanced Grunts 300 A7 Reached Mainframe 300 Met R17 at Cetus 500 Friendly Fire -236 Cogmind --------- Core Integrity 422/1000 Matter 300/300 Energy 35/100 System Corruption 10% Temperature Warm (138) Movement Core (1600) Ox31 Location -5/Factory Parts ------- > --- POWER (2) -------- (None) > --- PROPULSION (4) --- (None) > --- UTILITY (7) ------ Advanced Heat Sink Improved Coolant Injector Huge Storage Unit Advanced Targeting Computer Weapon Cycler Centrium Medium Armor Plating Long-range Tractor Beam > --- WEAPON (4) ------- Wave Gun > --- INVENTORY (25) --- Improved Heat Sink Energy Well (350) Large Matter Pod (150) Graphene Brace Improved Hacking Suite Improved Field Recycling Unit (0) Remote Datajack Phasing Sabre Peak State ------------ > --- POWER ------------ Quantum Reactor > --- PROPULSION ------- Armored Treads Armored Treads Centrium Heavy Treads > --- UTILITY ---------- Huge Storage Unit Advanced Targeting Computer Matter Filter Centrium Medium Armor Plating Centrium Medium Armor Plating Improved Hacking Suite > --- WEAPON ----------- Flak Gun Flak Gun Advanced KE Penetrator Advanced KE Penetrator > --- INVENTORY -------- Armored Treads Armored Treads Armored Treads Medium Treads Improved Medium Treads Advanced Heat Sink Weapon Cycler Centrium Medium Armor Plating Centrium Medium Armor Plating Centrium Medium Armor Plating Graphene Brace Improved Hacking Suite Gauss Rifle Flak Gun Advanced KE Penetrator Heavy Rocket Launcher Remote Datajack Phasing Sabre [Rating: 97] Favorites ----------- Power Fission Core Engine Angular Momentum Engine Power Core Fission Core Reactor Quantum Reactor Propulsion Armored Treads Treads Armored Treads Leg Improved VSS Leg Utility Huge Storage Unit Device Advanced Heat Sink Storage Huge Storage Unit Processor Core Analyzer Hackware Hacking Suite Protection Centrium Medium Armor Plating Weapon Gauss Rifle Energy Gun Beam Rifle Energy Cannon Heavy Particle Cannon Ballistic Gun Gauss Rifle Ballistic Cannon Improved Light Cannon Launcher Heavy Rocket Launcher Special Weapon Remote Datajack Slashing Weapon Axe Build | -11 -10 -9 -8 -7 -6 -6 -6 -6 -6 -5 ------- Run | Yrd Mat Mat Mat Fac Fac Ext Cet Arc Hub Fac Slots Evolved 10 | . . 2 2 2 2 . . . . 2 Power 1 | . . . . . . . . . . 1 Propulsion 2 | . . 1 . 1 . . . . . . Utility 5 | . . . 2 1 1 . . . . 1 Weapon 2 | . . 1 . . 1 . . . . . Parts Attached 186 | 7 9 18 39 24 31 9 7 3 11 28 Power 25 | 1 3 2 5 1 4 . 2 . 1 6 Engine 15 | 1 3 2 4 . 3 . . . . 2 Core 6 | . . . 1 1 1 . . . . 3 Reactor 4 | . . . . . . . 2 . 1 1 Propulsion 44 | 2 1 7 9 7 7 4 1 . 2 4 Treads 43 | 2 1 7 9 7 7 4 1 . 2 3 Leg 1 | . . . . . . . . . . 1 Wheel . | . . . . . . . . . . . Hover . | . . . . . . . . . . . Flight . | . . . . . . . . . . . Utility 51 | 2 2 3 10 6 10 2 1 3 4 8 Device 21 | 1 . . 3 3 5 . . 2 1 6 Storage 6 | 1 . 2 1 1 1 . . . . . Processor 4 | . 1 1 . . 1 . . . 1 . Hackware 2 | . . . . 1 . . . 1 . . Protection 18 | . 1 . 6 1 3 2 1 . 2 2 Artifact . | . . . . . . . . . . . Weapon 66 | 2 3 6 15 10 10 3 3 . 4 10 Energy Gun 13 | 2 . 2 6 . 1 . . . . 2 Energy Cannon 1 | . . . 1 . . . . . . . Ballistic Gun 44 | . 2 3 6 7 9 2 3 . 4 8 Ballistic Cannon 1 | . . 1 . . . . . . . . Launcher 5 | . 1 . 2 2 . . . . . . Special Weapon 1 | . . . . . . 1 . . . . Impact Weapon . | . . . . . . . . . . . Slashing Weapon 1 | . . . . 1 . . . . . . Piercing Weapon . | . . . . . . . . . . . Special Melee Weapon . | . . . . . . . . . . . Unidentified Prototypes 4 | . . . 1 . . . 3 . . . Corrupted Parts 1 | . . . . . . . 1 . . . System Corruption 4 | . . . . . . . 4 . . . Parts Lost 117 | . 4 6 21 6 23 6 . . 13 38 Power 16 | . 2 1 2 . 3 . . . 1 7 Propulsion 32 | . 1 2 6 2 6 3 . . 4 8 Utility 24 | . . . 4 3 5 1 . . 3 8 Weapon 45 | . 1 3 9 1 9 2 . . 5 15 Highest Loss Streak 15 | . 1 2 6 2 6 3 . . 6 15 To Critical Strikes 2 | . . . . . . . . . 1 1 Average Backups 18 | 1 5 8 16 20 20 23 24 25 19 17 Power 1 | . . . 1 1 1 1 1 1 . . Propulsion 3 | . . . 6 3 2 3 4 5 3 . Utility 7 | . 1 4 4 4 8 11 11 11 9 11 Weapon 5 | . 2 2 5 9 6 6 6 7 5 4 Tool/Special . | . . . . . . . . . . . Unused Backups 43 | . . 5 5 6 2 7 8 1 1 8 Power 8 | . . . 1 1 2 2 1 . . 1 Propulsion 3 | . . . . . . 1 2 . . . Utility 19 | . . 4 . . . 2 5 1 1 6 Weapon 13 | . . 1 4 5 . 2 . . . 1 Tool/Special . | . . . . . . . . . . . Average Slot Usage (%) 95 | . 98 93 96 98 95 94 93 93 94 91 Engine 4 | . 13 10 7 . 2 6 . . . 3 Core 2 | . . . . 6 3 . . . . 4 Reactor 1 | . . . . . . . 5 6 6 . Treads 25 | . 27 29 26 29 24 26 20 20 21 17 Device 11 | . . . 14 21 12 6 6 6 8 16 Storage 7 | . 14 11 9 7 6 6 6 6 6 5 Processor 4 | . 2 11 2 . 5 6 6 6 6 5 Hackware 4 | . . . . 6 6 6 6 6 6 4 Protection 5 | . 11 . 8 1 4 7 13 13 10 4 Energy Gun 1 | . 4 2 6 . 1 . . . . . Ballistic Gun 21 | . 22 18 13 22 23 25 26 26 25 19 Ballistic Cannon 1 | . . 9 1 . . . . . . . Peak Build Rating 97 | 7 7 13 32 48 63 64 91 94 97 92 Average Rating 49 | 4 6 11 27 41 57 62 86 92 89 72 On Entrance 45 | . 7 7 13 29 48 63 62 91 94 84 Avg Prop Armor Cover (%) 6 | . . . . . . . . . . 6 Naked Turns . | . . . . . . . . . . . Heaviest Build 139 | 13 14 52 78 108 130 130 133 133 133 139 Greatest Support 120 | 40 40 60 67 84 88 88 120 120 120 98 Greatest Overweight (x) 8 | . . . 1 1 1 1 1 1 3 8 Average Overweight (x) . | . . . . . 1 1 1 1 1 1 Largest Inventory Capacity 25 | 8 8 20 20 25 25 25 25 25 25 25 Average Capacity 21 | 7 8 9 20 21 25 25 25 25 25 25 Most Carried 25 | 2 8 11 20 24 23 25 25 25 25 23 Average Carried 18 | 1 5 8 16 20 20 23 24 25 19 17 Final Capacity 25 | 8 8 20 20 25 25 25 25 25 25 25 Final Carried 25 | 2 8 11 18 24 23 25 25 25 17 8 Class Distribution -------------------- 46% | Scavenger-Tank 40% | Scavenger-Gunner 5% | Mutant 4% | Scavenger-Mutant Dominant Class ---------------- Mutant | -10/Materials Scavenger-Gunner | -9/Materials Scavenger-Tank | -8/Materials Scavenger-Tank | -7/Factory Scavenger-Gunner | -6/Factory Scavenger-Gunner | -6/Extension Scavenger-Tank | -6/Cetus Scavenger-Tank | -6/Archives Scavenger-Tank | -6/Hub_04(d) Scavenger-Gunner | -5/Factory Resources | -11 -10 -9 -8 -7 -6 -6 -6 -6 -6 -5 ----------- Run | Yrd Mat Mat Mat Fac Fac Ext Cet Arc Hub Fac Matter Collected 9716 | 260 250 714 1387 1851 1786 909 256 222 1089 992 Remotely 647 | . . . . . . . . . . 647 Salvage Created 13201 | 165 272 1011 2837 1831 2524 1120 33 254 1215 1939 Parts 709 | 10 22 56 157 89 146 47 2 17 63 100 Haulers Intercepted 5 | . . 3 . . . 1 . . 1 . Recyclers Shooed 18 | . 1 1 6 3 2 2 . . 1 2 Parts Field Recycled . | . . . . . . . . . . . Retrieved Matter . | . . . . . . . . . . . Parts Self-Destructed . | . . . . . . . . . . . Prevented . | . . . . . . . . . . . Parts Restored . | . . . . . . . . . . . Kills | -11 -10 -9 -8 -7 -6 -6 -6 -6 -6 -5 ------- Run | Yrd Mat Mat Mat Fac Fac Ext Cet Arc Hub Fac Combat Hostiles Destroyed 225 | . 12 21 52 30 40 19 . 2 22 27 Guns 187 | . 7 15 36 28 38 19 . 2 19 23 Cannons 7 | . . 6 1 . . . . . . . AOE 30 | . 5 . 14 2 2 . . . 3 4 Classes Destroyed 21 | 2 3 5 6 1 1 2 . . . 1 Worker 13 | . . . 3 2 . . . . 4 4 Builder 12 | . . . 4 . 3 1 . . 2 2 Tunneler 3 | 3 . . . . . . . . . . Hauler 5 | . . 3 . . . 1 . . 1 . Recycler 22 | 1 . . 9 4 2 1 . . . 5 Operator 6 | . . 1 1 . 1 . . 3 . . Watcher 12 | . 1 . 2 4 1 1 1 . 1 1 Swarmer 24 | . 8 . 8 . . . . . 4 4 Saboteur 1 | . . . . . . . . . . 1 Grunt 85 | . 4 12 24 14 21 2 . . 6 2 Brawler 3 | . . 1 1 . . . . . . 1 Duelist 2 | . . 1 . . . . . . . 1 Protector 3 | . . . 1 . 1 . . . 1 . Sentry 30 | . . 7 10 3 . 4 . 2 1 3 Demolisher 1 | . . . . . . 1 . . . . Specialist 12 | . . . 2 2 2 . . . 2 4 Hunter 26 | . . . 5 5 6 . . . 3 7 Programmer 15 | . . . . 5 5 . . . 1 4 Heavy 7 | . . . 1 1 4 . . . 1 . Behemoth 2 | . . . . . 1 1 . . . . Lightning 3 | . . . . . . . . . 3 . Assembled 10 | . . . . . . 10 . . . . Thug 1 | . . . . . . 1 . . . . Best Kill Streak 12 | 3 3 2 12 5 7 11 1 2 7 12 Combat Bots Only 11 | . 3 2 7 3 5 10 . 2 7 11 Max Kills in Single Turn 3 | 1 2 1 3 3 2 3 1 2 3 3 Gunslinging 1 | . . . . . . 1 . . . 1 Exploded 2 | . 2 . 2 1 2 . . . 2 2 Melee . | . . . . . . . . . . . Uniques/NPCs Destroyed . | . . . . . . . . . . . Combat | -11 -10 -9 -8 -7 -6 -6 -6 -6 -6 -5 -------- Run | Yrd Mat Mat Mat Fac Fac Ext Cet Arc Hub Fac Hostile Shots Fired 1889 | . 113 119 303 214 312 158 25 7 199 439 Missed 518 | . 23 30 75 67 104 41 10 2 57 109 Hits 1371 | . 90 89 228 147 208 117 15 5 142 330 Melee 10 | . . 7 . . . 2 . . . 1 Projectile 1361 | . 90 82 228 147 208 115 15 5 142 329 AOE 3 | . . . . . . 3 . . . . Critical Strikes 63 | . . 5 12 7 8 . 4 . 16 11 Part Disruptions 5 | . . . . . . . . . . 5 Damage Taken 23209 | 30 903 1329 3967 1886 3707 1516 403 135 3463 5870 Core 2191 | . 109 202 533 194 278 72 52 . 173 578 Absorbed by Shields 1270 | . . . 144 324 368 332 102 . . . Reduced by Siege Mode 95 | . . . . . . . . . 95 . Redirected to Shielding 31 | . 31 . . . . . . . . . Ignored by Resistances 404 | . . . . . . . . . . 404 Regen/Repaired (Parts) 299 | . 127 63 . 109 . . . . . . Core Remaining (%) 52 | 100 56 49 3 72 . . . . 32 . Volleys Fired 721 | 6 56 72 143 119 102 55 9 9 69 81 Largest 4 | 2 2 3 3 3 4 4 4 4 4 4 Hottest 195 | 90 90 119 154 81 141 112 119 119 133 195 Shots Fired 2186 | 12 106 197 389 354 391 179 35 35 256 232 Gun 2057 | 12 100 144 343 350 389 166 35 35 254 229 Cannon 80 | . . 53 27 . . . . . . . Launcher 36 | . 6 . 19 4 2 . . . 2 3 Special 13 | . . . . . . 13 . . . . Kinetic 1901 | . 90 168 233 350 363 166 35 35 254 207 Thermal 204 | 6 5 29 116 . 26 . . . . 22 Explosive 36 | . 6 . 19 4 2 . . . 2 3 Electromagnetic 32 | 6 5 . 21 . . . . . . . Robot Hit Streak 44 | 4 6 31 44 14 27 15 6 4 12 19 Robot Miss Streak 8 | 3 5 3 3 6 7 6 2 6 8 8 Penetration Max 1 | . . . . 1 1 1 1 1 1 1 Secondary Targets 39 | . 1 2 10 2 12 4 . . 4 4 Max Gunslinging Chain 1 | . 1 1 1 1 1 1 . . 1 1 Shots Hit Robots 1540 | 7 57 152 291 239 273 113 27 23 189 169 Core Hits 885 | 4 28 48 132 117 192 60 25 18 134 127 Critical Kills 18 | . . 1 . 1 2 1 . 4 4 5 Critical Parts Destroyed 18 | . 1 . 1 2 1 3 1 . 6 3 Critical Strikes 53 | 1 1 2 12 3 4 5 1 4 11 9 Burn 12 | 1 . . 10 . 1 . . . . . Destroy 39 | . 1 1 1 3 3 5 1 4 11 9 Blast 1 | . . 1 . . . . . . . . Corrupt 1 | . . . 1 . . . . . . . Melee Attacks 1 | . . . . 1 . . . . . . Impact . | . . . . . . . . . . . Slashing 1 | . . . . 1 . . . . . . Piercing . | . . . . . . . . . . . Sneak Attacks . | . . . . . . . . . . . Combat Hostiles . | . . . . . . . . . . . Follow-up Attacks . | . . . . . . . . . . . Damage Inflicted 32743 | 145 738 2159 6265 4462 5673 2636 747 497 4709 4712 Guns 26939 | 85 491 1402 3795 4023 5188 2632 747 497 4083 3996 Cannons 1234 | . . 757 477 . . . . . . . Explosions 4542 | 60 247 . 1980 439 474 . . . 626 716 Melee . | . . . . . . . . . . . Ramming 28 | . . . 13 . 11 4 . . . . Kinetic 25110 | . 442 1892 2363 4023 4899 2632 747 497 4083 3532 Thermal 2796 | 96 26 267 1654 . 289 . . . . 464 Explosive 4197 | . 247 . 1980 439 474 . . . 341 716 Electromagnetic 612 | 49 23 . 255 . . . . . 285 . Impact . | . . . . . . . . . . . Slashing . | . . . . . . . . . . . Piercing . | . . . . . . . . . . . Highest Corruption 26 | . 1 . 1 4 4 5 9 9 26 10 Average Corruption 4 | . 1 . 1 2 3 4 8 6 16 5 Corruption Purged 9 | . . . . . . . . 9 . . Corruption Blocked . | . . . . . . . . . . . Effects 212 | . 3 . 19 49 19 36 23 12 30 21 Message Errors 38 | . 1 . 6 9 3 4 5 3 5 2 Matter Fused 51 | . . . 6 15 3 9 4 3 6 5 Heat Flow Errors 22 | . . . 1 8 1 2 3 2 2 3 Energy Discharges 20 | . 1 . . 4 3 4 4 . 3 1 Parts Rejected 1 | . . . . . 1 . . . . . Parts Fused 3 | . 1 . . . . 1 . 1 . . Data Loss (minor) 31 | . . . 2 3 4 9 4 1 4 4 Data Loss (major) 8 | . . . . 2 2 2 1 . . 1 Misfires 10 | . . . 3 4 . 1 . . 1 1 Alerts 5 | . . . . 1 . 1 1 1 1 . Weapon Failures 23 | . . . 1 3 2 3 1 1 8 4 Overload Shots . | . . . . . . . . . . . Overflow Damage 255 | . 38 1 101 30 12 . . . 39 34 Projectiles 1 | . . 1 . . . . . . . . Explosions 254 | . 38 . 101 30 12 . . . 39 34 Melee . | . . . . . . . . . . . Knockbacks 6 | . . 2 4 . . . . . . . Impact . | . . . . . . . . . . . Kinetic 6 | . . 2 4 . . . . . . . Secondary . | . . . . . . . . . . . Self-Inflicted Damage 492 | 30 46 . 110 61 74 . . . 104 67 Shots 16 | 1 3 . 5 1 2 . . . 1 3 Rammed 2 | . . . 2 . . . . . . . Targets Rammed 4 | . . . 2 . 1 1 . . . . Kicked . | . . . . . . . . . . . Crushed 2 | . . . . . 1 1 . . . . Highest Temperature 508 | 60 90 339 331 224 270 254 263 172 344 508 Average Temperature 67 | 28 35 51 67 58 63 42 107 76 61 136 Received Heat Transfer 4101 | . 234 462 1134 355 451 336 4 . 345 780 Effects 8 | . . 1 . 1 . . . . 1 5 Shutdowns 4 | . . . . . . . . . . 4 Energy Bleed 2 | . . 1 . 1 . . . . . . Interference 1 | . . . . . . . . . 1 . Short Circuit 1 | . . . . . . . . . . 1 Siege Activations 4 | . . . . . . . . . 4 . Total Turns 85 | . . . . . . . . . 85 . Longest Duration 41 | . . . . . . . . . 41 . Martial Activations . | . . . . . . . . . . . Shielding Activations . | . . . . . . . . . . . Robots Disrupted . | . . . . . . . . . . . Combat Hostiles . | . . . . . . . . . . . Robots Corrupted 1 | . . . 1 . . . . . . . Combat Hostiles 1 | . . . 1 . . . . . . . Parts Fried 6 | . . . 2 . . . . . 4 . Impact Corruptions . | . . . . . . . . . . . Robots Melted . | . . . . . . . . . . . Combat Hostiles . | . . . . . . . . . . . Parts Melted 7 | . . . 5 . 2 . . . . . Heat Transferred 6849 | 235 74 657 4514 . 666 . . . . 703 Parts Sabotaged . | . . . . . . . . . . . Parts Stolen . | . . . . . . . . . . . Parts Stripped . | . . . . . . . . . . . Power Chain Reactions 2 | 2 . . . . . . . . . . Alert | -11 -10 -9 -8 -7 -6 -6 -6 -6 -6 -5 ------- Run | Yrd Mat Mat Mat Fac Fac Ext Cet Arc Hub Fac Maximum Alert Level 3 | . . . 3 2 2 1 1 . 2 1 Low Security (%) 43 | 100 100 100 18 1 32 73 23 100 49 20 Level 1 39 | . . . 40 69 43 26 76 . 11 79 Level 2 14 | . . . 25 28 23 . . . 39 . Level 3 1 | . . . 15 . . . . . . . Level 4 . | . . . . . . . . . . . Level 5 . | . . . . . . . . . . . High Security . | . . . . . . . . . . . Max Security . | . . . . . . . . . . . Sterilizations 1 | . . . 1 . . . . . . . Peak Influence 965 | 10 138 97 965 502 540 395 328 134 599 363 Initial 436 | . . 22 28 436 230 240 214 89 . 269 Average 240 | . 70 45 377 358 292 153 237 40 286 245 Influence Increases 8231 | 20 388 651 1627 929 1104 1121 360 143 1029 859 Destroy 0b10 Robot/C 4800 | . 240 420 1020 600 780 540 160 80 420 540 Destroy 0b10 Robot/NC 430 | 20 5 20 100 50 40 60 10 15 50 60 Destroy Leader 1164 | . 42 146 264 198 172 86 . . 134 122 Allied During Kill 476 | . . . . . . 285 159 31 1 . Successful Hack 235 | . 23 28 16 24 . 105 15 . 21 3 Disable Machine 345 | . 15 15 45 15 60 . . 15 165 15 Destroy Structure 406 | . 18 7 107 12 22 15 16 2 133 74 Lose Combat Pursuer 375 | . 45 15 75 30 30 30 . . 105 45 Influence Decreases 7961 | 20 334 636 737 1417 1083 1229 520 367 478 1140 Entered New Map 1676 | . . 32 41 523 241 252 170 135 . 282 Time Decay 4494 | 20 294 544 486 684 612 542 310 172 352 478 Lost Part 1160 | . 40 60 210 60 230 60 . . 120 380 Lost Ally 286 | . . . . . . 180 40 60 6 . Purge Threat 345 | . . . . 150 . 195 . . . . Squads Dispatched 72 | . 2 5 19 14 10 3 . . 10 9 Investigation 13 | . 1 2 3 4 1 2 . . . . Extermination 13 | . . . . 7 3 . . . 1 2 Reinforcement 25 | . 1 3 5 3 6 1 . . 3 3 Assault 1 | . . . 1 . . . . . . . Garrison 20 | . . . 10 . . . . . 6 4 Intercept . | . . . . . . . . . . . Searches Triggered . | . . . . . . . . . . . Construction Impeded 3 | . . . . . . 1 . . 1 1 Haulers Reinforced 1 | . . . . . . . . . . 1 Active Scanning Responses . | . . . . . . . . . . . Cargo Convoy Interrupts 2 | . . . . . 1 . . . . 1 Stealth | -11 -10 -9 -8 -7 -6 -6 -6 -6 -6 -5 --------- Run | Yrd Mat Mat Mat Fac Fac Ext Cet Arc Hub Fac Distress Signals 24 | . 2 1 7 3 3 . 2 . 2 4 Communications Jammed . | . . . . . . . . . . . Distress Signals . | . . . . . . . . . . . Times Spotted 351 | . 25 25 68 43 50 40 10 10 34 46 Peak Tracking Total 10 | . 5 4 7 6 5 5 5 2 6 10 Tactical Retreats 20 | . 1 1 5 1 2 2 . . 6 2 Traps | -11 -10 -9 -8 -7 -6 -6 -6 -6 -6 -5 ------- Run | Yrd Mat Mat Mat Fac Fac Ext Cet Arc Hub Fac Traps Triggered 8 | . . . . 1 1 6 . . . . Indirectly . | . . . . . . . . . . . Trap Hack Attempts . | . . . . . . . . . . . Triggered . | . . . . . . . . . . . Disarmed . | . . . . . . . . . . . Reprogrammed . | . . . . . . . . . . . Reused . | . . . . . . . . . . . Traps Extracted . | . . . . . . . . . . . Installed . | . . . . . . . . . . . Triggered . | . . . . . . . . . . . Machines | -11 -10 -9 -8 -7 -6 -6 -6 -6 -6 -5 ---------- Run | Yrd Mat Mat Mat Fac Fac Ext Cet Arc Hub Fac Machines Disabled 24 | . 1 1 3 1 4 . 1 1 11 1 Max in Single Turn 5 | . 1 1 1 1 2 . . 1 5 1 Garrison Access 1 | . . . . . 1 . . . . . Network Hub 1 | . . . . . . . . . 1 . Machines Repaired . | . . . . . . . . . . . Machines Dismantled . | . . . . . . . . . . . Machines Sabotaged . | . . . . . . . . . . . Overloaded Fab Kills . | . . . . . . . . . . . Hacking | -11 -10 -9 -8 -7 -6 -6 -6 -6 -6 -5 --------- Run | Yrd Mat Mat Mat Fac Fac Ext Cet Arc Hub Fac Machines Accessed 66 | . 5 9 9 12 5 17 3 . 3 3 Terminals 41 | . 3 5 3 6 2 15 3 . 3 1 Fabricators 1 | . . . . 1 . . . . . . Repair Stations 7 | . 1 1 1 2 1 . . . . 1 Recycling Units 11 | . 1 2 2 2 1 2 . . . 1 Scanalyzers 4 | . . 1 2 1 . . . . . . Garrison Access 2 | . . . 1 . 1 . . . . . Total Hacks 148 | . 16 23 22 27 6 34 7 . 9 4 Successful 72 | . 8 10 10 11 3 22 3 . 3 2 Failed 74 | . 7 12 12 16 3 12 4 . 6 2 Catastrophic 17 | . 2 2 5 6 1 . . . 1 . Database Lockouts 2 | . 1 1 . . . . . . . . Manual 33 | . 6 8 3 . 2 7 2 2 3 . Terminals 96 | . 12 13 9 12 3 30 7 . 9 1 Fabricators 2 | . . . . 2 . . . . . . Repair Stations 17 | . 2 2 2 8 1 . . . . 2 Recycling Units 16 | . 2 3 3 2 1 4 . . . 1 Scanalyzers 13 | . . 5 5 3 . . . . . . Garrison Access 4 | . . . 3 . 1 . . . . . Terminal Hacks 43 | . 5 5 3 2 1 20 3 . 3 1 Record 2 | . . . . . . . 2 . . . Part Schematic 1 | . 1 . . . . . . . . . Robot Analysis 1 | . . . . . . 1 . . . . Prototype ID Bank 3 | . . . 1 . . 2 . . . . Open Door 11 | . . . . . 1 9 1 . . . Open DSF 2 | . . . . 1 . . . . . 1 Level Access Points 1 | . . . . . . . . . 1 . Branch Access Points 1 | . . . . . . 1 . . . . Emergency Access Points 1 | . . . . . . . . . 1 . Terminal Index 3 | . . 1 . . . 1 . . 1 . Unreport Threat 3 | . . . . 1 . 2 . . . . Locate Traps 3 | . 1 1 1 . . . . . . . Dispatch Records 1 | . 1 . . . . . . . . . Transport Status 1 | . . 1 . . . . . . . . Reinforcement Status 1 | . . . . . . 1 . . . . Hauler Manifests 3 | . 1 1 1 . . . . . . . Registered Components 3 | . 1 1 . . . 1 . . . . Zone Layout 2 | . . . . . . 2 . . . . Fabricator Hacks 2 | . . . . 2 . . . . . . Load Schematic 1 | . . . . 1 . . . . . . Build 1 | . . . . 1 . . . . . . Repair Station Hacks 10 | . 2 2 1 5 . . . . . . Scan Component 6 | . 1 1 1 3 . . . . . . Repair 4 | . 1 1 . 2 . . . . . . Recycling Unit Hacks 10 | . 1 . 3 2 1 2 . . . 1 Retrieve Components 10 | . 1 . 3 2 1 2 . . . 1 Scanalyzer 6 | . . 3 3 . . . . . . . Retrieve Study 6 | . . 3 3 . . . . . . . Garrison Access Hacks 1 | . . . . . 1 . . . . . Seal Access 1 | . . . . . 1 . . . . . Unauthorized Hacks . | . . . . . . . . . . . Terminals . | . . . . . . . . . . . Fabricators . | . . . . . . . . . . . Repair Stations . | . . . . . . . . . . . Recycling Units . | . . . . . . . . . . . Scanalyzers . | . . . . . . . . . . . Garrison Access . | . . . . . . . . . . . Data Cores Recovered . | . . . . . . . . . . . Used . | . . . . . . . . . . . Hacking Detections 49 | . 4 7 9 9 3 11 3 . 2 1 Full Trace Events 13 | . 2 3 3 3 1 1 . . . . Feedback Events 2 | . 1 . 1 . . . . . . . Corruption 2 | . 1 . 1 . . . . . . . Feedback Blocked . | . . . . . . . . . . . Robot Schematics Acquired . | . . . . . . . . . . . Robots Built . | . . . . . . . . . . . Authchips . | . . . . . . . . . . . Time . | . . . . . . . . . . . Total Robot Build Rating . | . . . . . . . . . . . Part Schematics Acquired 1 | . 1 . . . . . . . . . Parts Built 1 | . . . . 1 . . . . . . Authchips . | . . . . . . . . . . . Time 51 | . . . . 51 . . . . . . Total Part Build Rating 1 | . . . . 1 . . . . . . Part Studies Acquired 6 | . . 3 3 . . . . . . . Parts Repaired 4 | . 1 1 . 2 . . . . . . Time 138 | . 26 32 . 80 . . . . . . Parts Recycled . | . . . . . . . . . . . Recycled Matter . | . . . . . . . . . . . Retrieved Matter . | . . . . . . . . . . . Retrieved Components 53 | . 4 . 11 15 10 11 . . . 2 Parts Scanalyzed . | . . . . . . . . . . . Part Schematics Acquired . | . . . . . . . . . . . Parts Damaged . | . . . . . . . . . . . Bothacking | -11 -10 -9 -8 -7 -6 -6 -6 -6 -6 -5 ------------ Run | Yrd Mat Mat Mat Fac Fac Ext Cet Arc Hub Fac Used RIF Installer . | . . . . . . . . . . . Robots Hacked . | . . . . . . . . . . . Non-combat . | . . . . . . . . . . . Combat . | . . . . . . . . . . . Robot Hacks Applied . | . . . . . . . . . . . Relay Couplers Released . | . . . . . . . . . . . Fabnet Peak Effective % . | . . . . . . . . . . . Robots Rewired 7 | . . . . . . 7 . . . . Allies Hacked . | . . . . . . . . . . . Hacks Repelled . | . . . . . . . . . . . Allies | -11 -10 -9 -8 -7 -6 -6 -6 -6 -6 -5 -------- Run | Yrd Mat Mat Mat Fac Fac Ext Cet Arc Hub Fac Total Allies 25 | . . . . . . 20 5 . . . Largest Group 14 | . . . . . . 11 14 5 1 . Highest-Rated Group 867 | . . . . . . 431 867 388 96 . Highest-Rated Ally 159 | . . . . . . 159 140 140 96 . Total Orders . | . . . . . . . . . . . Ally Attacks 211 | . . . . . . 137 59 12 3 . Total Damage 4451 | . . . . . . 2815 1077 469 90 . Kills 41 | . . . . . . 28 10 2 1 . Allies Corrupted . | . . . . . . . . . . . Allies Melted . | . . . . . . . . . . . Intel | -11 -10 -9 -8 -7 -6 -6 -6 -6 -6 -5 ------- Run | Yrd Mat Mat Mat Fac Fac Ext Cet Arc Hub Fac Active Infowar (turns) 23 | 10 13 . . . . . . . . . Seismic 23 | 10 13 . . . . . . . . . Robot Analysis Total 1 | . . . . . . 1 . . . . Derelict Logs Recovered . | . . . . . . . . . . . Drone Launches . | . . . . . . . . . . . Drone Recoveries . | . . . . . . . . . . . Exploration | -11 -10 -9 -8 -7 -6 -6 -6 -6 -6 -5 ------------- Run | Yrd Mat Mat Mat Fac Fac Ext Cet Arc Hub Fac Turns Passed 14076 | 149 646 1591 1822 2723 2007 1693 691 591 930 1233 Spaces Moved 5279 | 78 269 698 689 1216 726 590 258 171 248 336 Core 5 | 5 . . . . . . . . . . Treads 5254 | 73 269 698 689 1216 726 590 258 171 248 316 Legs 20 | . . . . . . . . . . 20 Wheels . | . . . . . . . . . . . Hover . | . . . . . . . . . . . Flight . | . . . . . . . . . . . Fastest Speed 50 | 50 160 160 145 156 201 247 246 246 245 242 Average Speed 200 | 152 160 160 174 171 217 248 246 246 246 277 Slowest Speed 810 | 160 160 160 203 211 247 250 250 246 410 810 Overloaded Moves . | . . . . . . . . . . . Propulsion Burnouts . | . . . . . . . . . . . Robots Hopped . | . . . . . . . . . . . Potential Cave-ins . | . . . . . . . . . . . Cave-ins Triggered 1 | . . . . . . 1 . . . . Exploration Rate (%) 46 | 5 60 63 48 25 16 76 85 94 31 9 Regions Visited 10 Branch Regions 4 Pre-discovered Areas . | . . . . . . . . . . . Known Exits Taken 2 | . . . . . . 1 . . 1 . Unknown Exits Taken 8 | 1 1 1 1 1 1 . 1 1 . . Scrap Searched . | . . . . . . . . . . . Spaces Dug 32 | . 16 . . 1 . . . . . 15 Terrain Destroyed 434 | . 16 3 115 9 28 2 1 3 220 37 Melee 1 | . . . . 1 . . . . . . Projectile 65 | . . 3 4 1 3 2 1 3 42 6 AOE 367 | . 16 . 111 7 25 . . . 178 30 Terrain Rammed . | . . . . . . . . . . . Walls Destroyed . | . . . . . . . . . . . Machines Disabled . | . . . . . . . . . . . Actions | -11 -10 -9 -8 -7 -6 -6 -6 -6 -6 -5 --------- Run | Yrd Mat Mat Mat Fac Fac Ext Cet Arc Hub Fac Total 7420 | 92 394 1031 1018 1694 977 705 298 319 399 493 Wait 888 | . 47 208 75 278 79 7 . 131 52 11 Move 5269 | 77 268 697 688 1215 725 589 257 170 247 336 Hop . | . . . . . . . . . . . Pick Up 191 | 2 10 16 43 31 29 17 10 1 8 24 Fast Attach 20 | 7 1 6 1 . 1 . . 2 . 2 Attach 125 | . 4 3 27 12 26 7 1 . 15 30 Detach 6 | . . . 1 . 1 . . 2 1 1 Swap 85 | . 7 12 18 17 5 8 6 3 5 4 Drop 98 | . 1 17 20 21 6 11 15 1 2 4 Fire 721 | 6 56 72 143 119 102 55 9 9 69 81 Melee 1 | . . . . 1 . . . . . . Ram . | . . . . . . . . . . . Kick . | . . . . . . . . . . . Crush 4 | . . . 2 . 1 1 . . . . Escape Stasis 12 | . . . . . 2 10 . . . . Rewire . | . . . . . . . . . . . Trap . | . . . . . . . . . . . Miscellaneous . | . . . . . . . . . . . Route ------- -11/Scrapyard -10/Materials -9/Materials (discovered 3 exits: *Mat x2 / [*Min]) -8/Materials -7/Factory -6/Factory (discovered 3 exits: *Fac / [*Low] / *Ext) -6/Extension (discovered 3 exits: *Fac x2 / *Cet) -6/Cetus (discovered 2 exits: *Fac / *Arc) -6/Archives (discovered 3 exits: *Fac / *Hub x2) -6/Hub_04(d) (discovered 4 exits: *Fac x4) -5/Factory History --------- Turn | Location | Event 9 | -11/Scrapyard | Discovered new exit (range 14) 150 | -11/Scrapyard | Entered Materials 317 | -10/Materials | Build established: Mutant 688 | -10/Materials | Repaired Lgt. Treads 726 | -10/Materials | Discovered new exit (range 11) 731 | -10/Materials | Central database locked down 796 | -10/Materials | Entered another Materials area 796 | -9/Materials | Evolved 2 slots: Propulsion x1, Weapon x1 1018 | -9/Materials | Central database locked down 1244 | -9/Materials | Discovered new exit (range 11) 1313 | -9/Materials | Build established: Scavenger-Gunner 1485 | -9/Materials | Repaired Hvy. Assault Rifle+ 1613 | -9/Materials | Discovered new exit (range 16) 2260 | -9/Materials | Core integrity fell below 50% 2379 | -9/Materials | Discovered new exit (range 6) 2387 | -9/Materials | Entered another Materials area 2387 | -8/Materials | Evolved 2 slots: Utility x2 2409 | -8/Materials | Build established: Scavenger-Mutant 2665 | -8/Materials | Garrison activated, responded to threat 2959 | -8/Materials | Lost 6 parts (1p1n1u3w) 3034 | -8/Materials | Garrison activated, responded to threat 3076 | -8/Materials | Core integrity fell below 50% 3126 | -8/Materials | Lost 3 parts (2n1w) 3398 | -8/Materials | Garrison activated, responded to threat 3530 | -8/Materials | Garrison activated, responded to threat 3665 | -8/Materials | Build established: Scavenger-Tank 3786 | -8/Materials | Lost 3 parts (1n1u1w) 3931 | -8/Materials | Core integrity fell below 20% 3987 | -8/Materials | First assault squad dispatched 4119 | -8/Materials | Destroyed 7 combat bots 4167 | -8/Materials | Sterilization system engaged 4167 | -8/Materials | Non-combat units ordered to evacuate 4192 | -8/Materials | Discovered new exit (range 9) 4209 | -8/Materials | Entered Factory 4209 | -7/Factory | Evolved 2 slots: Propulsion x1, Utility x1 5291 | -7/Factory | Discovered new exit (range 8) 5908 | -7/Factory | Fabricated Huge Storage Unit (x1) 6109 | -7/Factory | Repaired Fission Core 6498 | -7/Factory | Repaired Broken Weapon Cycler 6932 | -7/Factory | Entered another Factory area 6932 | -6/Factory | Evolved 2 slots: Utility x1, Weapon x1 7188 | -6/Factory | Lost 3 parts (1n1u1w) 7217 | -6/Factory | Build established: Scavenger-Gunner 7528 | -6/Factory | Discovered new exit (range 6) 7985 | -6/Factory | Spotted B-75 Beast 8006 | -6/Factory | Destroyed B-75 Beast 8055 | -6/Factory | Cargo convoy interrupted 8114 | -6/Factory | Discovered new exit (range 14) 8294 | -6/Factory | Lost 6 parts (3n3w) 8455 | -6/Factory | Lost 6 parts (1p3u2w) 8726 | -6/Factory | Discovered new exit (range 6) 8939 | -6/Factory | Entered Extension 9065 | -6/Extension | Rescued a captive Derelict 9075 | -6/Extension | Rescued a captive Derelict 9080 | -6/Extension | Identified exit to Cetus 9108 | -6/Extension | Rescued a captive Derelict 9109 | -6/Extension | Rescued a captive Derelict 9310 | -6/Extension | Lost 3 allies 9361 | -6/Extension | Rescued A7 9398 | -6/Extension | Rescued a captive Derelict 9458 | -6/Extension | Rescued a captive Derelict 9458 | -6/Extension | Rescued a captive Derelict 9472 | -6/Extension | Spotted B-75 Beast 9507 | -6/Extension | Destroyed B-75 Beast 9515 | -6/Extension | Spotted B-75 Beast 9546 | -6/Extension | Allies destroyed B-75 Beast 9552 | -6/Extension | Lost 3 parts (3n) 9634 | -6/Extension | Discovered new exit (range 3) 9826 | -6/Extension | Assembled infested ambush trap array 9894 | -6/Extension | Destroyed 10 combat bots 10122 | -6/Extension | Rescued a captive Derelict 10154 | -6/Extension | Rescued a captive Derelict 10154 | -6/Extension | Rescued a captive Derelict 10215 | -6/Extension | Crushed by falling debris 10246 | -6/Extension | Lost 3 parts (1u2w) 10334 | -6/Extension | Rescued a captive Derelict 10334 | -6/Extension | Rescued a captive Derelict 10517 | -6/Extension | Build established: Scavenger-Tank 10588 | -6/Extension | Discovered new exit (range 10) 10632 | -6/Extension | Entered Cetus 10632 | -6/Cetus | Accompanied by 11 allies (A7) 10637 | -6/Cetus | Acquired a Cetus Manufacturing Module code from A7 10663 | -6/Cetus | Spotted Cetus Guard 10664 | -6/Cetus | Spotted Cetus Guard 10666 | -6/Cetus | Spotted Cetus Guard 10666 | -6/Cetus | Spotted Cetus Guard 10680 | -6/Cetus | Allies destroyed Cetus Guard 10682 | -6/Cetus | Allies destroyed Cetus Guard 10685 | -6/Cetus | Allies destroyed Cetus Guard 10686 | -6/Cetus | Allies destroyed Cetus Guard 10849 | -6/Cetus | Started Cetus Manufacturing Module 10874 | -6/Cetus | Manufactured an Enhanced Grunt 10899 | -6/Cetus | Manufactured an Enhanced Grunt 10924 | -6/Cetus | Manufactured an Enhanced Grunt 10949 | -6/Cetus | Manufactured an Enhanced Grunt 10974 | -6/Cetus | Manufactured an Enhanced Grunt 10988 | -6/Cetus | Escorted A7 to Cetus Mainframe 11078 | -6/Cetus | Discovered new exit (range 16) 11126 | -6/Cetus | Spotted Cetus Guard 11126 | -6/Cetus | Spotted Cetus Guard 11131 | -6/Cetus | Spotted Cetus Guard 11132 | -6/Cetus | Spotted Cetus Guard 11134 | -6/Cetus | Allies destroyed Cetus Guard 11140 | -6/Cetus | Allies destroyed Cetus Guard 11147 | -6/Cetus | Allies destroyed Cetus Guard 11147 | -6/Cetus | Allies destroyed Cetus Guard 11160 | -6/Cetus | Discovered new exit (range 15) 11172 | -6/Cetus | Met Revision 17 11323 | -6/Cetus | Entered Archives 11323 | -6/Archives | Accompanied by 5 allies (A7) 11328 | -6/Archives | Received a hacking code to weaken MAIN.C 11391 | -6/Archives | Lost 3 allies 11402 | -6/Archives | Discovered new exit (range 16) 11451 | -6/Archives | Unable to access archive contents 11461 | -6/Archives | Discovered new exit (range 16) 11632 | -6/Archives | Discovered new exit (range 16) 11914 | -6/Archives | Entered Hub_04(d) 11914 | -6/Hub_04(d) | Accompanied by 1 ally 12020 | -6/Hub_04(d) | Garrison activated, responded to threat 12199 | -6/Hub_04(d) | Network Hub disabled 12390 | -6/Hub_04(d) | Core integrity fell below 50% 12401 | -6/Hub_04(d) | Spotted Lightning 12402 | -6/Hub_04(d) | Spotted Lightning 12417 | -6/Hub_04(d) | Garrison activated, responded to threat 12421 | -6/Hub_04(d) | System corruption reached 10% 12431 | -6/Hub_04(d) | Destroyed 7 combat bots 12444 | -6/Hub_04(d) | Lost 4 parts (1p1u2w) 12446 | -6/Hub_04(d) | Destroyed Lightning 12462 | -6/Hub_04(d) | Destroyed Lightning 12480 | -6/Hub_04(d) | Spotted Lightning 12546 | -6/Hub_04(d) | Destroyed Lightning 12587 | -6/Hub_04(d) | Lost 6 parts (3n1u2w) 12747 | -6/Hub_04(d) | Identified exit to Factory 12838 | -6/Hub_04(d) | Build established: Scavenger-Gunner 12844 | -6/Hub_04(d) | Entered Factory 12844 | -5/Factory | Evolved 2 slots: Power x1, Utility x1 13070 | -5/Factory | Lost 5 parts (1p1n3w) 13184 | -5/Factory | Lost 4 parts (1p2n1w) 13715 | -5/Factory | Cargo convoy interrupted 13747 | -5/Factory | Garrison activated, responded to threat 13807 | -5/Factory | Lost 13 parts (3p3n2u5w) 13814 | -5/Factory | Destroyed 11 combat bots 14052 | -5/Factory | System corruption reached 10% 14058 | -5/Factory | Garrison activated, responded to threat 14059 | -5/Factory | Core integrity fell below 50% 14077 | -5/Factory | Self-destructed Last Messages --------------- 14060_ Centrium Medium Armor Plating destroyed. 14061_ Acquired 10 matter. 14061_ System corrupted: Component data lost. 14063_ System corrupted: Wave Gun failed to cycle. 14064_ The unstable cave ceiling collapses. 14064_ Critical hit (Burn: +37). 14065_ P-70 Sage destroyed. 14068_ Wave Gun destroyed. 14068_ R-10 Processor collects Imp. Heat Sink. 14068_ M-28 Smith repairs G-50 Soldier. 14069_ S-27 Virus destroyed. 14070_ R-10 Processor collects Tesla Rifle. 14072_ Rnf. Fission Core destroyed. 14072_ R-10 Processor collects Adv. Heat Sink. 14075_ R-10 Processor collects Wheel. 14075_ R-10 Processor collects Adv. Heat Sink. 14076_ The unstable cave ceiling collapses. 14077_ Knocked back. [Achievement: 20k Club] Map ----- +----------------------------------------------------+ | ?????????? ###T ## #???????? | | ?????????? ! % #???????? | | ????????? %% #???????? | | ????????? !! #???????? | | ????????? ########+#####????? | | ????????? # ##???? | | ??????????? ############## # = #???? | | ????????????# # # ##???? | | ????????????# / + ]! #????? | | ????????????# # # ]! #????? | | ????????????# # # ] #????? | | ????????????# """ """ # # """#????? | | ????????????# """ """ # # """ """#????? | | ???? ??????# """ """ # # """ R"#????? | | ???? ?????# # # """ """#????? | | ???# ????# """ """ # # "" #????? | | ???# ???# """ """ # # #????? | | ???# ??# """ """ # ##############????? | | ???# ?# # #?????????????????? | | ???# ############## #?????????????????? | | ???# !== ############## #?????????????????? | | ???# !== #?????????????????? | | ???# === #### ##### #?????????????????? | | ???# % #[########% #?????????????????? | | ???# " %g% %%% ; ###########???????? | | #######R RH%%%%%@ # #???????? | | ?????????????# =#*| % %=%; # #???????? | | ?????????????# ## %#% # #???????? | | ?????????????## #" =%g# # #???????? | | ??????????????###"""" s% + #???????? | | ????????????????#"""" % # #???????? | | ????????????????#"""" # #???????? | | ????????????????# + # #???????? | | ????????????????##### # #### #############???????? | | ???????????????????# #???????????? | | ???????????????????# """ """ """ #???????????? | | ???????????????????# """ """ """ #???????????? | | ???????????????????# """ """ """ *"""#???????????? | | ???????????????????# "" "" = Y"#???????????? | | ???????????????????#= "" "" """#???????????? | | ???????????????????# ] #???????????? | | ????????????????????#?################???????????? | | | | | | | | | | | | | | | | | +----------------------------------------------------+ Best States ------------- Heat Dissipation 61 Coolant Potential 80 Energy Generation 38 Energy Capacity 475 Matter Stores 300 Matter Capacity 300 Sight Range 16 Terrain Scan Density 10 Armor Coverage 900 Resistance: KI 25 Weapon Shielding 33 Weapon Cycling 15 Evasion (%) 40 Targeting Accuracy 8 Core Analysis 6 Recoil Reduction 4 Matter Filtering 30 Offensive Hacking 12 Item Schematics ----------------- Huge Storage Unit | -10/Materials | Hacked Robot Schematics ------------------ None Fabricated ------------ Huge Storage Unit | x1 | -7/Factory Repaired ---------- Lgt. Treads | 9% | -10/Materials Hvy. Assault Rifle | 45% | -9/Materials Fission Core | 14% | -7/Factory Weapon Cycler | 20% | -7/Factory | Broken Studied --------- Hvy. Assault Rifle | -9/Materials | Hacked Lgt. Treads | -9/Materials | Hacked Lgt. Assault Rifle | -9/Materials | Hacked Adv. Treads | -8/Materials | Hacked Imp. Grenade Launcher | -8/Materials | Hacked Beam Rifle | -8/Materials | Hacked Alien Tech Used ----------------- None Achievements -------------- 20k Club Ew, Corruption Fancy Inventory Main Advantage Out Of My Way Prison Break Project G-00 Revising The Future Challenges ------------ None Game ------ Seed CoolingTractorWell Manual? 0 Play Time 02:20:07 Cumulative 29.0 hours Start 2025.12.30 @ 01:08:53 End 2025.12.31 @ 17:58:28 Sessions 3 Manual Loads 0 Difficulty Rogue Special Mode None Game No. 26 Rogue 26 Adventurer 0 Explorer 0 Win Type - Total 1 Types 1/0/0/0/0/0/0/0/0/0 Lore% 6 Gallery% 24 Achievement% 24 Wizard Run 0 Options --------- Layout 1 ASCII 0 Keyboard 0 Movement Mouse Keybinds 1 Fullscreen 2 Font 24/Smallcaps Map View 25x20 Zoom Use 79% Tactical HUD 1 Map Filters NONE Filters NONE Steam 1 RUN: a288db74-c580-433c-adcb-a6ffbc9e9196